[Event "Turkey IS Bank Super League 2017"]
[Site "Darica-Kocaeli"]
[Date "2017.08.04"]
[Round "10"]
[White "Nomin-Erdene, Davaademberel"]
[Black "Arda, Cagil Irmak"]
[Result "1/2-1/2"]
[ECO "B19"]
[WhiteElo "2373"]
[BlackElo "2080"]
[Annotator "NA RC"]
[PlyCount "86"]
[EventType "team-tourn"]
[EventCountry "TUR"]
[SourceTitle "playchess.com"]
[Source "ChessBase"]
[SourceQuality "1"]
[TimeControl "40/5400+30:1800+30"]

{[%evp 21,86,9,33,32767,32767,32767,32767,0,8,5,-2,5,-10,0,0,-9,0,-17,0,-4,0,-21,-4,-30,-29,-40,32767,-43,-38,-48,-41,-38,-33,-24,-31,-77,-96,-144,-92,-153,-150,-149,-84,-151,-159,-147,-153,-134,-151,-145,32767,-153,-141,-276,-302,-283,32767,32767,32767,-383,-299,32767,32767,-322,-304,-279,0]} 1. e4 {[%emt 0:00:30]} c6 {[%emt 0:01:00]} 2. d4 {[%emt 0:00:30]} d5 {[%emt 0:00:30]} 3. Nc3 {[%emt 0:00:30]} dxe4 {[%emt 0:00:30]} 4. Nxe4 {[%emt 0:00:30]} Bf5 {[%emt 0:00:30]} 5. Ng3 {[%emt 0:00:30]} Bg6 {[%emt 0:00:30]} 6. h4 {[%emt 0:00:30]} h6 {[%emt 0:00:30]} 7. Nf3 {[%emt 0:00:30]} e6 {[%emt 0:00:00]} 8. Ne5 {[%emt 0:10:30]} Bh7 {[%emt 0:00:00]} 9. Bd3 {[%emt 0:00:30]} Bxd3 {[%emt 0:00:00]} 10. Qxd3 {[%emt 0:00:30]} Nd7 {[%emt 0:00:00] B19: Classical Caro-Kann: 4...Bf5 main line} 11. f4 {[%emt 0:02:30] LiveBook: 228 Games} Bb4+ {[%emt 0:00:00]} (11... Be7 12. Bd2 Nxe5 13. fxe5 Bxh4 14. O-O-O Bxg3 15. Qxg3 Ne7 16. Bb4 Nf5 17. Qf4 g5 18. Qf2 {½-½ (43) Wei,Y (2706)-Giri,A (2773) Wijk aan Zee 2017}) 12. c3 {[%emt 0:00:30]} Bd6 {[%emt 0:00:00]} 13. Qe2 {[%emt 0:00:30]} Ngf6 {[%emt 0:00:00]} 14. Bd2 {[%emt 0:05:30]} Qc7 {[%emt 0:03:00]} 15. O-O-O {[%emt 0:03:30]} O-O {[%emt 0:05:30]} 16. Nxd7 $146 {[%emt 0:16:30]} ({Predecessor:} 16. Ne4 Nxe4 17. Qxe4 f5 18. Qe2 {0-1 (39) Jones,R (2414)-Kazhgaleyev,M (2573) Sydney 2015}) 16... Nxd7 {[%emt 0:06:30]} 17. Qf3 {[%emt 0:06:30]} Nf6 {[%emt 0:00:30]} 18. Kb1 {[%emt 0:05:30]} a5 {[%emt 0:05:30]} 19. Ne2 {[%emt 0:00:30]} c5 {[%emt 0:03:30]} ({Black should play} 19... h5 $1 $15) 20. g4 {[%emt 0:00:30]} Qc6 {[%emt 0:02:30]} 21. Qxc6 {[%emt 0:04:30]} bxc6 {[%emt 0:04:30]} 22. Rhg1 {[%emt 0:00:30]} Ne4 {[%emt 0:12:30]} 23. Be3 {[%emt 0:02:30]} c4 {[%emt 0:05:30]} 24. Ng3 {[%emt 0:10:30]} Nxg3 {[%emt 0:01:30]} 25. Rxg3 {[%emt 0:00:00]} a4 {[%emt 0:04:30]} 26. a3 {[%emt 0:00:00]} Rab8 {[%emt 0:06:30]} 27. Ka2 {[%emt 0:06:30]} Rb5 {[%emt 0:00:30]} 28. Rf3 {[%emt 0:02:30]} h5 {[%emt 0:03:30]} 29. Rg1 {[%emt 0:01:13]} (29. g5 $142) 29... g6 {[%emt 0:00:30]} 30. Rf2 {[%emt 0:02:37]} ({Better is} 30. g5) 30... hxg4 {[%emt 0:05:30]} 31. Rxg4 {[%emt 0:00:28]} Be7 {[%emt 0:00:30]} (31... Rd5 $142 32. Rh2 Kg7) 32. Re2 {[%emt 0:03:43]} Rh5 {[%emt 0:01:30]} 33. Bf2 {[%emt 0:00:22]} Bf6 {[%emt 0:00:30]} 34. Kb1 {[%emt 0:02:14]} Kg7 {[%emt 0:00:30]} 35. Be1 {[%emt 0:01:23]} Rfh8 {[%emt 0:00:30]} 36. Rh2 {[%emt 0:00:10]} Be7 {[%emt 0:01:30]} 37. Bg3 {[%emt 0:09:21]} (37. Kc2 $17) 37... f5 {[%emt 0:08:30]} 38. Rg5 {[%emt 0:00:04]} Bxg5 {[%emt 0:00:30]} 39. fxg5 {[%emt 0:00:04]} Kf7 {[%emt 0:00:00]} 40. Kc2 {[%emt 0:00:00]} Rd8 {[%emt 0:01:00]} 41. Be5 {[%emt 0:04:51]} Rh7 {[%emt 0:02:30]} 42. Rh1 {[%emt 0:06:30]} Rd5 {[%emt 0:00:30]} 43. Rh2 {[%emt 0:04:30]} Rd8 $11 {[%emt 0:00:30]} ({Better is} 43... c5 $19 44. Kd2 Ke8) 1/2-1/2

[Event "Turkey IS Bank Super League 2017"]
[Site "Darica-Kocaeli"]
[Date "2017.08.04"]
[Round "10"]
[White "Osmak, Iulija"]
[Black "Isgandarova, Khayala"]
[Result "1/2-1/2"]
[ECO "A48"]
[WhiteElo "2353"]
[BlackElo "2257"]
[Annotator "RC"]
[PlyCount "146"]
[EventType "team-tourn"]
[EventCountry "TUR"]
[SourceTitle "playchess.com"]
[Source "ChessBase"]
[SourceQuality "1"]
[TimeControl "40/5400+30:1800+30"]

1. d4 {[%emt 0:00:30]} Nf6 {[%emt 0:01:00]} 2. Bf4 {[%emt 0:00:30]} g6 {[%emt 0:03:30]} 3. e3 {[%emt 0:00:30]} Bg7 {[%emt 0:00:30]} 4. Nf3 {[%emt 0:00:30]} c5 {[%emt 0:01:30]} 5. c3 {[%emt 0:01:30]} Qb6 {[%emt 0:01:30]} 6. Qb3 {[%emt 0:13:30]} Qxb3 {[%emt 0:14:30]} 7. axb3 {[%emt 0:00:30]} cxd4 {[%emt 0:00:00]} 8. exd4 {[%emt 0:00:30]} d6 {[%emt 0:02:00]} 9. Na3 {[%emt 0:10:30]} Nc6 {[%emt 0:01:30]} 10. Bb5 {[%emt 0:02:30]} O-O {[%emt 0:07:30]} 11. O-O {[%emt 0:01:30]} Nd5 {[%emt 0:00:30]} 12. Bg3 {[%emt 0:02:30]} Bg4 {[%emt 0:03:30]} 13. Nd2 {[%emt 0:14:30]} Bh6 {[%emt 0:01:30]} 14. Bxc6 {[%emt 0:04:30]} bxc6 {[%emt 0:00:30]} 15. Ndc4 {[%emt 0:00:30]} Rfc8 {[%emt 0:07:30]} 16. b4 {[%emt 0:04:30]} Bd7 {[%emt 0:10:30]} 17. Rfe1 {[%emt 0:02:30]} f5 {[%emt 0:13:30]} 18. f3 {[%emt 0:01:30]} f4 {[%emt 0:02:30]} 19. Bf2 {[%emt 0:00:30]} Kf7 {[%emt 0:00:30]} 20. Nb1 {[%emt 0:02:30]} Bf5 {[%emt 0:05:30]} 21. Nbd2 {[%emt 0:01:30]} Bd3 {[%emt 0:00:30]} 22. Ra3 {[%emt 0:02:30]} g5 {[%emt 0:07:21]} 23. h3 {[%emt 0:02:30]} Bg7 {[%emt 0:00:16]} 24. Na5 {[%emt 0:00:30]} h5 {[%emt 0:00:55]} 25. Ne4 {[%emt 0:00:30]} Bh6 {[%emt 0:00:08]} 26. Raa1 {[%emt 0:07:30]} g4 {[%emt 0:02:48]} 27. hxg4 {[%emt 0:00:30]} hxg4 {[%emt 0:00:06]} 28. fxg4 {[%emt 0:00:30]} Bxe4 {[%emt 0:02:10]} 29. Rxe4 {[%emt 0:00:30]} Nf6 {[%emt 0:00:03]} 30. Re2 {[%emt 0:01:30]} Nxg4 {[%emt 0:00:07]} 31. Nc4 {[%emt 0:01:30]} Bg5 {[%emt 0:02:47]} 32. Ra5 {[%emt 0:01:47]} Kg6 {[%emt 0:06:23]} 33. Nd2 {[%emt 0:02:38]} Rh8 {[%emt 0:01:04]} 34. Nf3 {[%emt 0:01:05]} Bf6 {[%emt 0:01:12]} 35. Ra6 {[%emt 0:05:33]} Rh6 {[%emt 0:01:16]} 36. Rxc6 {[%emt 0:01:06]} Rah8 {[%emt 0:00:33]} 37. g3 {[%emt 0:00:13]} Rh1+ {[%emt 0:00:59]} 38. Kg2 {[%emt 0:00:03]} e5 {[%emt 0:00:45]} 39. dxe5 {[%emt 0:03:40]} dxe5 {[%emt 0:00:05]} 40. gxf4 {[%emt 0:00:00]} exf4 {[%emt 0:01:32]} 41. Bxa7 {[%emt 0:12:55]} R1h3 {[%emt 0:10:30]} 42. Bf2 {[%emt 0:02:30]} Nxf2 {[%emt 0:03:17]} 43. Kxf2 {[%emt 0:00:30]} Kf5 {[%emt 0:00:38]} 44. b5 {[%emt 0:10:17]} Bh4+ {[%emt 0:10:35]} 45. Nxh4+ {[%emt 0:00:06]} R8xh4 {[%emt 0:00:00]} 46. Ke1 {[%emt 0:03:35]} Rd3 {[%emt 0:03:22]} 47. Rc5+ {[%emt 0:00:22]} Kf6 {[%emt 0:01:20]} 48. Rce5 {[%emt 0:08:59]} Rh1+ {[%emt 0:03:46]} 49. Kf2 {[%emt 0:00:02]} Rdh3 {[%emt 0:00:00]} 50. Re6+ {[%emt 0:00:47]} Kf7 {[%emt 0:00:00]} 51. b6 {[%emt 0:00:51]} f3 {[%emt 0:00:13]} 52. Re7+ {[%emt 0:01:27]} Kf6 {[%emt 0:00:30]} 53. R2e6+ {[%emt 0:00:30]} Kf5 {[%emt 0:00:00]} 54. Re5+ {[%emt 0:00:00]} Kf4 {[%emt 0:00:51]} 55. Re4+ {[%emt 0:00:00]} Kf5 {[%emt 0:00:30]} 56. R7e5+ {[%emt 0:00:00]} Kf6 {[%emt 0:00:00]} 57. Re6+ {[%emt 0:03:13]} Kf5 {[%emt 0:00:00]} 58. R6e5+ {[%emt 0:00:30]} Kf6 {[%emt 0:00:00]} 59. Re8 {[%emt 0:00:00]} R1h2+ {[%emt 0:01:05]} 60. Ke3 {[%emt 0:00:00]} f2+ {[%emt 0:02:15]} 61. Ke2 {[%emt 0:00:00]} f1=Q+ {[%emt 0:00:30]} 62. Kxf1 {[%emt 0:00:00]} Rxb2 {[%emt 0:00:00]} 63. R8e6+ {[%emt 0:01:47]} Kf5 {[%emt 0:00:09]} 64. R4e5+ {[%emt 0:00:59]} Kf4 {[%emt 0:00:11]} 65. Re2 {[%emt 0:00:35]} Rb1+ {[%emt 0:01:04]} 66. Kg2 {[%emt 0:00:07]} Rg3+ {[%emt 0:00:54]} 67. Kh2 {[%emt 0:00:14]} Rxc3 {[%emt 0:00:00]} 68. Rf2+ {[%emt 0:00:25]} Kg5 {[%emt 0:00:04]} 69. Ref6 {[%emt 0:00:52]} Rcb3 {[%emt 0:00:34]} 70. Rf8 {[%emt 0:01:08]} R1b2 {[%emt 0:00:41]} 71. Rg8+ {[%emt 0:00:34]} Kh6 {[%emt 0:00:27]} 72. Rxb2 {[%emt 0:00:49]} Rxb2+ {[%emt 0:00:05]} 73. Kh3 {[%emt 0:00:16]} Rxb6 {[%emt 0:00:05]} 1/2-1/2

[Event "Turkey IS Bank Super League 2017"]
[Site "Darica-Kocaeli"]
[Date "2017.08.04"]
[Round "10"]
[White "Yurtseven, Melih"]
[Black "Arat, Ufuk Sezen"]
[Result "0-1"]
[ECO "A05"]
[WhiteElo "2353"]
[BlackElo "2400"]
[Annotator "RC"]
[PlyCount "130"]
[EventType "team-tourn"]
[EventCountry "TUR"]
[SourceTitle "playchess.com"]
[Source "ChessBase"]
[SourceQuality "1"]
[TimeControl "40/5400+30:1800+30"]

1. Nf3 {[%emt 0:00:30]} Nf6 {[%emt 0:01:00]} 2. g3 {[%emt 0:00:30]} e6 {[%emt 0:00:30]} 3. Bg2 {[%emt 0:00:30]} b5 {[%emt 0:00:30]} 4. O-O {[%emt 0:00:30]} Bb7 {[%emt 0:00:30]} 5. d3 {[%emt 0:00:00]} c5 {[%emt 0:03:30]} 6. e4 {[%emt 0:00:00]} d6 {[%emt 0:03:30]} 7. a4 {[%emt 0:00:00]} a6 {[%emt 0:15:30]} 8. Re1 {[%emt 0:16:00]} Nbd7 {[%emt 0:05:30]} 9. c3 {[%emt 0:06:30]} Be7 {[%emt 0:03:30]} 10. Nh4 {[%emt 0:03:30]} Rb8 {[%emt 0:11:30]} 11. d4 {[%emt 0:03:30]} O-O {[%emt 0:06:30]} 12. b3 {[%emt 0:16:30]} cxd4 {[%emt 0:09:30]} 13. cxd4 {[%emt 0:00:30]} Rc8 {[%emt 0:04:30]} 14. axb5 {[%emt 0:10:30]} axb5 {[%emt 0:00:30]} 15. Bd2 {[%emt 0:00:30]} Ra8 {[%emt 0:02:30]} 16. Rxa8 {[%emt 0:05:30]} Bxa8 {[%emt 0:04:30]} 17. d5 {[%emt 0:07:30]} exd5 {[%emt 0:04:30]} 18. exd5 {[%emt 0:02:30]} Re8 {[%emt 0:01:30]} 19. Bb4 {[%emt 0:13:57]} Nc5 {[%emt 0:02:40]} 20. Bc3 {[%emt 0:00:56]} Qd7 {[%emt 0:03:11]} 21. b4 {[%emt 0:02:26]} Na4 {[%emt 0:05:18]} 22. Ba1 {[%emt 0:00:13]} Nb6 {[%emt 0:00:23]} 23. Nc3 {[%emt 0:00:44]} Bd8 {[%emt 0:01:52]} 24. Rf1 {[%emt 0:02:25]} Nc4 {[%emt 0:01:05]} 25. Qd3 {[%emt 0:00:47]} Bb7 {[%emt 0:06:36]} 26. h3 {[%emt 0:00:33]} Bb6 {[%emt 0:01:34]} 27. Nf5 {[%emt 0:03:18]} Bc8 {[%emt 0:01:06]} 28. g4 {[%emt 0:01:35]} Ne5 {[%emt 0:00:34]} 29. Qxb5 {[%emt 0:01:10]} Qc7 {[%emt 0:00:37]} 30. Na4 {[%emt 0:00:53]} Ba7 {[%emt 0:00:09]} 31. Qa5 {[%emt 0:00:21]} Qxa5 {[%emt 0:01:22]} 32. bxa5 {[%emt 0:00:02]} Bxf5 {[%emt 0:00:16]} 33. gxf5 {[%emt 0:00:30]} Nd3 {[%emt 0:00:00]} 34. Nb6 {[%emt 0:01:00]} Nh5 {[%emt 0:00:00]} 35. Rd1 {[%emt 0:00:26]} Nhf4 {[%emt 0:00:26]} 36. Bf1 {[%emt 0:00:20]} Nc5 {[%emt 0:01:09]} 37. Bc3 {[%emt 0:01:11]} Rb8 {[%emt 0:00:40]} 38. Bd2 {[%emt 0:00:38]} Nh5 {[%emt 0:00:30]} 39. Rb1 {[%emt 0:00:30]} Nf6 {[%emt 0:00:20]} 40. Bc4 {[%emt 0:00:00]} Nfd7 {[%emt 0:01:12]} 41. Bf4 {[%emt 0:11:46]} Bxb6 {[%emt 0:03:30]} 42. axb6 {[%emt 0:01:11]} Rxb6 {[%emt 0:00:30]} 43. Rxb6 {[%emt 0:12:44]} Nxb6 {[%emt 0:00:30]} 44. Be2 {[%emt 0:00:00]} Ne4 {[%emt 0:03:30]} 45. Bh2 {[%emt 0:03:26]} Nxd5 {[%emt 0:03:30]} 46. f3 {[%emt 0:00:33]} Ng5 {[%emt 0:07:44]} 47. Bxd6 {[%emt 0:00:26]} Nxh3+ {[%emt 0:01:41]} 48. Kh2 {[%emt 0:00:10]} Nhf4 {[%emt 0:00:04]} 49. Bc4 {[%emt 0:02:07]} Ne3 {[%emt 0:00:13]} 50. Ba2 {[%emt 0:02:37]} Ne2 {[%emt 0:03:57]} 51. f6 {[%emt 0:00:41]} gxf6 {[%emt 0:02:59]} 52. Bc5 {[%emt 0:00:37]} Nf5 {[%emt 0:01:26]} 53. Bb1 {[%emt 0:00:15]} Nh4 {[%emt 0:01:01]} 54. Be4 {[%emt 0:00:35]} f5 {[%emt 0:00:55]} 55. Bc6 {[%emt 0:00:43]} Nf4 {[%emt 0:00:06]} 56. Kg3 {[%emt 0:00:52]} Nhg6 {[%emt 0:00:03]} 57. Bd6 {[%emt 0:00:14]} Ne2+ {[%emt 0:00:59]} 58. Kf2 {[%emt 0:00:23]} Nd4 {[%emt 0:00:04]} 59. Ba4 {[%emt 0:00:36]} f4 {[%emt 0:00:12]} 60. Ba3 {[%emt 0:00:33]} Ne5 {[%emt 0:01:56]} 61. Bd1 {[%emt 0:00:02]} Nd3+ {[%emt 0:01:04]} 62. Kg1 {[%emt 0:00:49]} Kg7 {[%emt 0:01:21]} 63. Bd6 {[%emt 0:00:41]} f6 {[%emt 0:00:01]} 64. Bb8 {[%emt 0:00:15]} Nb2 {[%emt 0:00:41]} 65. Ba7 {[%emt 0:00:45]} Nc6 {[%emt 0:00:05]} 0-1

[Event "Turkey IS Bank Super League 2017"]
[Site "Darica-Kocaeli"]
[Date "2017.08.04"]
[Round "10"]
[White "Unuk, Laura"]
[Black "Yildiz, Betul Cemre"]
[Result "1/2-1/2"]
[ECO "D27"]
[WhiteElo "2343"]
[BlackElo "2326"]
[Annotator "RC"]
[PlyCount "155"]
[EventType "team-tourn"]
[EventCountry "TUR"]
[SourceTitle "playchess.com"]
[Source "ChessBase"]
[SourceQuality "1"]
[TimeControl "40/5400+30:1800+30"]

1. d4 {[%emt 0:00:30]} d5 {[%emt 0:01:00]} 2. c4 {[%emt 0:00:30]} dxc4 {[%emt 0:00:30]} 3. e3 {[%emt 0:00:30]} Nf6 {[%emt 0:00:30]} 4. Bxc4 {[%emt 0:00:30]} e6 {[%emt 0:00:30]} 5. Nf3 {[%emt 0:00:30]} a6 {[%emt 0:00:00]} 6. O-O {[%emt 0:00:00]} c5 {[%emt 0:00:00]} 7. a4 {[%emt 0:01:00]} Nc6 {[%emt 0:00:30]} 8. Qe2 {[%emt 0:00:30]} Qc7 {[%emt 0:00:30]} 9. Rd1 {[%emt 0:10:30]} Bd6 {[%emt 0:01:30]} 10. h3 {[%emt 0:00:30]} b6 {[%emt 0:08:30]} 11. b3 {[%emt 0:17:30]} Bb7 {[%emt 0:07:30]} 12. Bb2 {[%emt 0:02:30]} cxd4 {[%emt 0:07:30]} 13. exd4 {[%emt 0:00:30]} Nb4 {[%emt 0:03:30]} 14. Nbd2 {[%emt 0:05:30]} Nbd5 {[%emt 0:02:30]} 15. Rac1 {[%emt 0:08:30]} Qe7 {[%emt 0:01:30]} 16. g3 {[%emt 0:02:30]} O-O {[%emt 0:03:30]} 17. Ne5 {[%emt 0:00:30]} Nb4 {[%emt 0:02:30]} 18. Qe1 {[%emt 0:10:30]} Rac8 {[%emt 0:15:30]} 19. Bf1 {[%emt 0:01:30]} Ba8 {[%emt 0:05:30]} 20. Ndc4 {[%emt 0:03:30]} Qb7 {[%emt 0:04:30]} 21. f3 {[%emt 0:00:00]} Be7 {[%emt 0:01:30]} 22. Bg2 {[%emt 0:03:00]} b5 {[%emt 0:04:30]} 23. axb5 {[%emt 0:02:30]} axb5 {[%emt 0:00:00]} 24. Ne3 {[%emt 0:03:30]} Qb6 {[%emt 0:04:00]} 25. Kh2 {[%emt 0:08:16]} Nbd5 {[%emt 0:01:30]} 26. N3g4 {[%emt 0:06:44]} Rfd8 {[%emt 0:04:30]} 27. Qe2 {[%emt 0:01:35]} Ne8 {[%emt 0:03:45]} 28. Nd7 {[%emt 0:02:33]} Qa7 {[%emt 0:05:36]} 29. Nc5 {[%emt 0:00:16]} Nd6 {[%emt 0:00:36]} 30. Ne5 {[%emt 0:01:34]} Bf6 {[%emt 0:01:12]} 31. Ra1 {[%emt 0:01:53]} Qe7 {[%emt 0:00:26]} 32. Rxa8 {[%emt 0:04:07]} Rxa8 {[%emt 0:00:44]} 33. Nc6 {[%emt 0:00:03]} Qe8 {[%emt 0:01:23]} 34. Nxd8 {[%emt 0:00:03]} Rxd8 {[%emt 0:00:31]} 35. Ne4 {[%emt 0:02:06]} Be7 {[%emt 0:05:22]} 36. Nxd6 {[%emt 0:00:14]} Rxd6 {[%emt 0:01:34]} 37. f4 {[%emt 0:00:35]} Bf6 {[%emt 0:02:34]} 38. Ra1 {[%emt 0:01:17]} b4 {[%emt 0:01:37]} 39. Ra4 {[%emt 0:00:40]} Be7 {[%emt 0:00:34]} 40. Ra7 {[%emt 0:00:00]} Qb8 {[%emt 0:01:06]} 41. Ra5 {[%emt 0:02:34]} Qd8 {[%emt 0:02:30]} 42. Qb5 {[%emt 0:05:30]} Rb6 {[%emt 0:07:30]} 43. Qa4 {[%emt 0:09:15]} Rb8 {[%emt 0:01:44]} 44. Ra7 {[%emt 0:00:14]} Bf6 {[%emt 0:02:23]} 45. f5 {[%emt 0:05:28]} Nc3 {[%emt 0:02:43]} 46. Bxc3 {[%emt 0:01:49]} bxc3 {[%emt 0:01:42]} 47. fxe6 {[%emt 0:00:03]} fxe6 {[%emt 0:05:02]} 48. Qc4 {[%emt 0:02:35]} Qxd4 {[%emt 0:01:59]} 49. Qxe6+ {[%emt 0:00:30]} Kh8 {[%emt 0:00:00]} 50. Rc7 {[%emt 0:01:50]} Qd8 {[%emt 0:03:53]} 51. Rc6 {[%emt 0:03:08]} Qg8 {[%emt 0:02:28]} 52. Qf5 {[%emt 0:02:51]} Qd8 {[%emt 0:03:15]} 53. h4 {[%emt 0:00:41]} Qd2 {[%emt 0:00:46]} 54. Kh3 {[%emt 0:00:43]} Rd8 {[%emt 0:00:25]} 55. Rc7 {[%emt 0:00:49]} Qh6 {[%emt 0:00:38]} 56. Rc8 {[%emt 0:00:27]} g5 {[%emt 0:00:28]} 57. Qd7 {[%emt 0:00:59]} Qf8 {[%emt 0:00:11]} 58. Rxd8 {[%emt 0:00:02]} Qxd8 {[%emt 0:00:19]} 59. Qxd8+ {[%emt 0:00:34]} Bxd8 {[%emt 0:00:30]} 60. Be4 {[%emt 0:00:04]} gxh4 {[%emt 0:00:18]} 61. gxh4 {[%emt 0:00:31]} h5 {[%emt 0:00:20]} 62. b4 {[%emt 0:00:37]} Kg7 {[%emt 0:00:04]} 63. b5 {[%emt 0:00:18]} Kf6 {[%emt 0:00:30]} 64. Kg3 {[%emt 0:00:00]} Ke5 {[%emt 0:00:12]} 65. Bh7 {[%emt 0:00:00]} Kd4 {[%emt 0:00:36]} 66. Kh3 {[%emt 0:01:14]} Kc4 {[%emt 0:00:48]} 67. b6 {[%emt 0:00:05]} Bxb6 {[%emt 0:00:17]} 68. Bc2 {[%emt 0:00:04]} Kd4 {[%emt 0:00:19]} 69. Kg3 {[%emt 0:00:30]} Ke3 {[%emt 0:00:30]} 70. Bg6 {[%emt 0:00:30]} Bc7+ {[%emt 0:00:30]} 71. Kh3 {[%emt 0:00:00]} Bd8 {[%emt 0:00:00]} 72. Kg3 {[%emt 0:00:00]} Kd2 {[%emt 0:00:00]} 73. Kh3 {[%emt 0:00:00]} c2 {[%emt 0:00:00]} 74. Bxc2 {[%emt 0:00:00]} Kxc2 {[%emt 0:00:14]} 75. Kg3 {[%emt 0:00:22]} Kd3 {[%emt 0:00:30]} 76. Kh3 {[%emt 0:00:00]} Ke4 {[%emt 0:00:00]} 77. Kg3 {[%emt 0:00:00]} Bc7+ {[%emt 0:00:00]} 78. Kh3 {[%emt 0:00:00]} 1/2-1/2

[Event "Turkey IS Bank Super League 2017"]
[Site "Darica-Kocaeli"]
[Date "2017.08.04"]
[Round "10"]
[White "Ozturk, Kubra"]
[Black "Kaplan, Ebru"]
[Result "1-0"]
[ECO "E90"]
[WhiteElo "2298"]
[BlackElo "2022"]
[Annotator "NA"]
[PlyCount "89"]
[EventType "team-tourn"]
[EventCountry "TUR"]
[SourceTitle "playchess.com"]
[Source "ChessBase"]
[SourceQuality "1"]
[TimeControl "40/5400+30:1800+30"]

{[%evp 12,87,32,28,91,38,60,18,125,101,129,104,112,104,119,100,138,115,125,116,119,129,124,124,129,107,117,113,105,78,60,50,75,0,10,0,22,54,91,105,160,139,161,32767,32767,32767,32767,32767,179,126,172,41,303,288,32767,289,32767,32767,32767,325,32767,32767,32767,353,329,359,32767,32767,32767,198,32767,484,460,487,665,674,975,967]} 1. d4 {[%emt 0:00:30]} Nf6 {[%emt 0:01:00]} 2. c4 {[%emt 0:00:30]} g6 {[%emt 0:00:30]} 3. Nc3 {[%emt 0:00:30]} Bg7 {[%emt 0:00:30]} 4. e4 {[%emt 0:00:30]} d6 {[%emt 0:00:30]} 5. h3 {[%emt 0:00:30]} O-O {[%emt 0:00:30]} 6. Be3 {[%emt 0:00:00]} c5 {[%emt 0:00:30]} 7. Nf3 {[%emt 0:00:00] LiveBook: 56 Games} Nfd7 {[%emt 0:05:30] E90: King's Indian: Classical: Early deviations and 6 h3} (7... cxd4 $14 8. Nxd4 b6 9. g3 Bb7 10. Bg2 Nbd7 11. O-O Nc5 12. Qc2 Rc8 13. Rfd1 Qd7 14. a4 a5 15. Nd5 Qd8 16. Rd2 {1-0 (50) Matlakov,M (2714)-Kovalev,V (2629) Minsk 2017}) 8. Be2 {[%emt 0:07:30]} Nc6 {[%emt 0:02:30]} 9. O-O {[%emt 0:00:30]} a6 $146 {[%emt 0:13:30]} (9... e5 $11 {keeps the balance.} 10. dxc5 dxc5) ({Predecessor:} 9... cxd4 10. Nxd4 a6 11. Nxc6 bxc6 12. Bd4 e5 13. Be3 Qe7 14. Qd2 Rd8 15. Bg5 {0-1 (57) Parreira,A (1914)-Pires,E (2054) Almada 2017}) 10. d5 {[%emt 0:05:30]} Nce5 {[%emt 0:00:30]} 11. Nd2 {[%emt 0:04:30]} Nf6 {[%emt 0:06:30]} 12. Qc2 {[%emt 0:04:30]} Rb8 {[%emt 0:03:30]} 13. a4 {[%emt 0:02:30]} Ne8 {[%emt 0:03:30]} 14. f4 {[%emt 0:03:30]} Nd7 {[%emt 0:00:30]} 15. Nf3 {[%emt 0:00:30]} Nc7 {[%emt 0:03:30]} 16. Rad1 {[%emt 0:05:30]} b6 {[%emt 0:03:30]} 17. b3 {[%emt 0:10:30]} Re8 {[%emt 0:04:30]} 18. Rd2 {[%emt 0:05:30]} Rf8 {[%emt 0:13:30]} 19. Ng5 {[%emt 0:04:30]} Ne8 {[%emt 0:05:30]} 20. Nd1 {[%emt 0:02:30]} Nc7 {[%emt 0:01:30]} 21. Nf2 {[%emt 0:03:30]} b5 {[%emt 0:06:30]} 22. Nd3 {[%emt 0:08:30]} (22. e5 $14) 22... bxa4 {[%emt 0:01:30]} 23. bxa4 {[%emt 0:00:30]} h6 {[%emt 0:05:20]} 24. Nf3 {[%emt 0:01:30]} Nf6 {[%emt 0:04:14] [#]} 25. Nf2 $1 {[%emt 0:05:30]} Nfe8 {[%emt 0:00:05]} (25... Nh5 $142) 26. e5 {[%emt 0:00:30]} Bf5 {[%emt 0:01:52]} 27. Bd3 {[%emt 0:02:30]} Bxd3 {[%emt 0:00:57]} 28. Nxd3 {[%emt 0:00:30]} a5 {[%emt 0:02:38]} 29. f5 {[%emt 0:01:30]} gxf5 {[%emt 0:02:16] [#]} 30. exd6 {[%emt 0:09:13]} (30. g4 $1 $18) 30... exd6 {[%emt 0:01:36]} 31. Nf4 {[%emt 0:00:23]} (31. g3 $18) 31... Qd7 $2 {[%emt 0:03:50]} (31... Nf6 $1 $14) 32. Nh4 {[%emt 0:02:15]} Rb2 {[%emt 0:00:50]} 33. Qxf5 {[%emt 0:00:41]} Qxf5 {[%emt 0:01:57]} 34. Nxf5 {[%emt 0:00:03]} Rb4 {[%emt 0:00:00]} 35. Nh5 {[%emt 0:02:31]} Rxc4 {[%emt 0:01:30]} 36. Nhxg7 {[%emt 0:05:53]} Nxg7 {[%emt 0:00:09]} 37. Ne7+ {[%emt 0:00:00]} ({Weaker is} 37. Nxd6 Rxa4 38. Bxh6 (38. Bxc5 Rd8 $18) 38... f5 $18) 37... Kh7 {[%emt 0:00:23]} 38. Rf6 $1 {[%emt 0:00:12]} Nge8 {[%emt 0:02:00]} 39. Rxh6+ {[%emt 0:00:30]} Kg7 {[%emt 0:00:00]} 40. Nf5+ {[%emt 0:00:00]} Kg8 {[%emt 0:00:23]} 41. Rd3 {[%emt 0:03:19]} f6 {[%emt 0:13:53] [#]} 42. Bxc5 $1 {[%emt 0:04:30]} Nxd5 {[%emt 0:07:19]} 43. Bxd6 {[%emt 0:03:30]} ({Less strong is} 43. Rxd5 dxc5 44. Rh5 Ng7 $16) 43... Nxd6 {[%emt 0:01:56]} 44. Rg3+ $18 {[%emt 0:00:30]} ({Less strong is} 44. Rxd5 Nxf5 45. Rxf5 Rxa4 $16) 44... Kf7 {[%emt 0:00:30]} 45. Nxd6+ {[%emt 0:00:00]} 1-0